[Event "Go-Makkah Chess Festival 2019"]
[Site "Sousse"]
[Date "2019.09.07"]
[Round "7.9"]
[White "Ben Brahem, Aymen"]
[Black "Ben Ghanem, Hamed"]
[Result "0-1"]
[ECO "D00"]
[WhiteElo "2010"]
[BlackElo "2064"]
[Annotator "NA"]
[PlyCount "108"]
[EventDate "2019.09.02"]
[EventType "swiss"]
[EventCountry "TUN"]
[SourceTitle "playchess.com"]
[Source "ChessBase"]
[SourceQuality "1"]
[TimeControl "5400+30"]

1. d4 {[%emt 0:00:00]} d5 {[%emt 0:00:00]} 2. Bf4 {[%emt 0:00:00]} Nf6 {[%emt 0:00:00]} 3. e3 {[%emt 0:00:00]} c5 {[%emt 0:00:00]} 4. c3 {[%emt 0:00:22]} Nc6 {[%emt 0:00:00]} 5. Nd2 {[%emt 0:00:41]} cxd4 {[%emt 0:00:06]} 6. exd4 {[%emt 0:00:20] D00: 1 d4 d5: Unusual lines} Bf5 {[%emt 0:00:33]} 7. Ngf3 {[%emt 0:02:03]} e6 {[%emt 0:00:09]} 8. Qb3 {[%emt 0:00:18]} Qc8 {[%emt 0:00:12]} 9. Nh4 {[%emt 0:00:37]} Be4 {[%emt 0:00:41]} 10. Nxe4 {[%emt 0:00:44]} dxe4 {[%emt 0:00:04]} 11. g3 {[%emt 0:03:37]} Be7 {[%emt 0:00:05]} 12. Bh3 $146 {[%emt 0:06:43]} ({Predecessor:} 12. Ng2 Nd5 {0-1 (46) Meier,G (2630)-Karjakin,S (2783) chess.com INT 2017}) 12... h6 {[%emt 0:08:57]} 13. Ng2 {[%emt 0:07:45]} g5 {[%emt 0:04:56]} 14. Be5 {[%emt 0:00:20]} Nxe5 {[%emt 0:00:06]} 15. dxe5 {[%emt 0:00:11]} Nd7 {[%emt 0:00:46]} 16. O-O-O {[%emt 0:10:09]} Qc6 {[%emt 0:03:37]} 17. Ne3 {[%emt 0:13:59]} O-O-O {[%emt 0:08:13]} 18. Rhe1 {[%emt 0:10:43]} Nc5 {[%emt 0:05:17]} 19. Qc4 {[%emt 0:08:06]} Nd3+ {[%emt 0:00:45]} 20. Rxd3 {[%emt 0:00:20]} exd3 {[%emt 0:00:12]} 21. Qxc6+ {[%emt 0:03:05]} bxc6 {[%emt 0:00:07]} 22. Nc4 {[%emt 0:01:59]} Kc7 {[%emt 0:03:20]} 23. Kd2 {[%emt 0:04:12]} Bc5 {[%emt 0:03:11]} 24. b4 {[%emt 0:01:31]} Bb6 {[%emt 0:04:33]} ({Much weaker is} 24... Bxf2 $6 25. Rf1 $11) 25. Nd6 {[%emt 0:01:38]} (25. a4 $1 $15) 25... Rd7 {[%emt 0:01:44]} 26. Kxd3 {[%emt 0:03:35]} Bxf2 {[%emt 0:04:16]} 27. Rf1 {[%emt 0:00:47]} Bb6 {[%emt 0:00:08]} 28. c4 {[%emt 0:00:24] [#]} c5 $1 {[%emt 0:02:10]} 29. a3 {[%emt 0:01:00]} f5 {[%emt 0:00:22]} 30. g4 {[%emt 0:02:15] [#]} f4 $1 {[%emt 0:02:48]} 31. Ke4 $19 {[%emt 0:02:58]} (31. Bg2 $142) 31... Kd8 {[%emt 0:03:58]} 32. Rb1 {[%emt 0:01:42]} Ke7 {[%emt 0:01:01]} 33. Rb2 {[%emt 0:01:34]} Rb8 {[%emt 0:05:53]} 34. bxc5 {[%emt 0:01:14]} Bc7 {[%emt 0:00:17]} 35. Rb4 {[%emt 0:00:42]} Rdd8 {[%emt 0:01:09]} 36. Nb5 {[%emt 0:03:23]} a5 {[%emt 0:02:43]} 37. Ra4 {[%emt 0:02:18]} Rd1 {[%emt 0:08:43]} 38. Nxc7 {[%emt 0:04:08]} Rb3 {[%emt 0:00:17]} 39. Nd5+ {[%emt 0:00:04]} exd5+ {[%emt 0:00:08]} 40. cxd5 {[%emt 0:00:08]} Re3+ {[%emt 0:00:09]} 41. Kf5 {[%emt 0:00:04]} Rxd5 {[%emt 0:00:17]} 42. Bf1 {[%emt 0:01:11]} Rexe5+ {[%emt 0:03:10]} 43. Kg6 {[%emt 0:00:04]} Re6+ {[%emt 0:00:31]} 44. Kg7 {[%emt 0:00:03]} Rxc5 {[%emt 0:00:27]} 45. Rd4 {[%emt 0:00:21]} Rc7 {[%emt 0:00:25]} 46. Bb5 {[%emt 0:00:15]} Rb6 {[%emt 0:01:19]} 47. Bc4 {[%emt 0:02:16]} f3 {[%emt 0:00:35]} 48. Bf7 {[%emt 0:02:33]} f2 {[%emt 0:01:29]} 49. Re4+ {[%emt 0:00:51]} Kd6 {[%emt 0:00:46]} 50. Re6+ {[%emt 0:00:13]} Kc5 {[%emt 0:00:15]} 51. Re5+ {[%emt 0:00:02]} Kd4 {[%emt 0:00:22]} 52. Rf5 {[%emt 0:00:36]} Ke3 {[%emt 0:00:05]} 53. Kg8 {[%emt 0:01:00]} Rb8+ {[%emt 0:00:07]} 54. Kg7 {[%emt 0:00:07]} Rbb7 {[%emt 0:00:04]} 0-1

[Event "Go-Makkah Chess Festival 2019"]
[Site "Sousse"]
[Date "2019.09.07"]
[Round "8.4"]
[White "Romero Holmes, Alfonso"]
[Black "Kjartansson, David"]
[Result "1-0"]
[ECO "B37"]
[WhiteElo "2414"]
[BlackElo "2401"]
[Annotator "ChessBase"]
[PlyCount "65"]
[EventDate "2019.09.02"]
[EventType "swiss"]
[EventCountry "TUN"]
[SourceTitle "playchess.com"]
[Source "ChessBase"]
[SourceQuality "1"]
[TimeControl "5400+30"]

1. c4 {[%emt 0:00:00]} c5 {[%emt 0:00:00]} 2. Nf3 {[%emt 0:00:26]} Nc6 {[%emt 0:00:00]} 3. Nc3 {[%emt 0:01:29]} g6 {[%emt 0:00:10]} 4. d4 {[%emt 0:00:17]} cxd4 {[%emt 0:00:13]} 5. Nxd4 {[%emt 0:00:06]} Bg7 {[%emt 0:00:12]} 6. Nc2 {[%emt 0:00:14]} Nf6 {[%emt 0:00:53]} 7. e4 {[%emt 0:00:15]} d6 {[%emt 0:00:08]} 8. Be2 {[%emt 0:00:07]} O-O {[%emt 0:00:21]} 9. Bg5 {[%emt 0:02:03]} h6 {[%emt 0:00:36]} 10. Be3 {[%emt 0:00:11]} a5 {[%emt 0:03:24]} 11. Qd2 {[%emt 0:00:15]} Kh7 {[%emt 0:01:41]} 12. f3 {[%emt 0:00:56]} a4 {[%emt 0:00:07]} 13. O-O {[%emt 0:02:26]} Qa5 {[%emt 0:03:35]} 14. Rfd1 {[%emt 0:04:55]} Be6 {[%emt 0:00:23]} 15. Nd5 {[%emt 0:02:12]} Qxd2 {[%emt 0:02:07]} 16. Bxd2 {[%emt 0:02:10]} Nxd5 {[%emt 0:03:49]} 17. cxd5 {[%emt 0:02:12]} Nd4 {[%emt 0:04:13]} 18. Nxd4 {[%emt 0:00:16]} Bxd4+ {[%emt 0:00:05]} 19. Kf1 {[%emt 0:00:07]} Bd7 {[%emt 0:00:40]} 20. Bxh6 {[%emt 0:02:25]} Bxb2 {[%emt 0:01:44]} 21. Bxf8 {[%emt 0:00:34]} Bxa1 {[%emt 0:00:37]} 22. Bxe7 {[%emt 0:02:27]} Be5 {[%emt 0:00:17]} 23. g3 {[%emt 0:34:34]} Re8 {[%emt 0:18:47]} 24. Bg5 {[%emt 0:00:05]} a3 {[%emt 0:00:26]} 25. Rc1 {[%emt 0:03:44]} Ba4 {[%emt 0:03:35]} 26. Bf4 {[%emt 0:14:23]} Bb2 {[%emt 0:06:44]} 27. Rc7 {[%emt 0:00:06]} Bb3 {[%emt 0:03:56]} 28. Bc4 {[%emt 0:02:02]} Re7 {[%emt 0:00:36]} 29. Rxe7 {[%emt 0:10:57]} Bxc4+ {[%emt 0:00:06]} 30. Kg2 {[%emt 0:03:33]} Kg7 {[%emt 0:02:39]} 31. Rxb7 {[%emt 0:01:24]} Bxa2 {[%emt 0:00:26]} 32. Bxd6 {[%emt 0:00:08]} Bc4 {[%emt 0:00:25]} 33. Rxb2 {[%emt 0:00:19]} 1-0

[Event "Go-Makkah Chess Festival 2019"]
[Site "Sousse"]
[Date "2019.09.07"]
[Round "8.5"]
[White "Bouzidi, Ahmed"]
[Black "Amdouni, Zoubaier"]
[Result "0-1"]
[ECO "B22"]
[WhiteElo "2197"]
[BlackElo "2290"]
[Annotator "ChessBase"]
[PlyCount "74"]
[EventDate "2019.09.02"]
[EventType "swiss"]
[EventCountry "TUN"]
[SourceTitle "playchess.com"]
[Source "ChessBase"]
[SourceQuality "1"]
[TimeControl "5400+30"]

1. e4 {[%emt 0:11:11]} c5 {[%emt 0:07:50]} 2. c3 {[%emt 0:01:54]} Nf6 {[%emt 0:00:34]} 3. e5 {[%emt 0:00:14]} Nd5 {[%emt 0:00:03]} 4. Nf3 {[%emt 0:01:07]} Nc6 {[%emt 0:00:18]} 5. d4 {[%emt 0:01:27]} cxd4 {[%emt 0:00:22]} 6. Bc4 {[%emt 0:00:15]} Nb6 {[%emt 0:00:08]} 7. Bb3 {[%emt 0:00:06]} d5 {[%emt 0:12:04]} 8. exd6 {[%emt 0:00:56]} Qxd6 {[%emt 0:01:22]} 9. Na3 {[%emt 0:00:13]} a6 {[%emt 0:02:25]} 10. O-O {[%emt 0:00:17]} e6 {[%emt 0:06:06]} 11. cxd4 {[%emt 0:41:54]} Be7 {[%emt 0:03:55]} 12. Be3 {[%emt 0:08:21]} O-O {[%emt 0:19:38]} 13. Qd2 {[%emt 0:02:02]} Qd8 {[%emt 0:13:48]} 14. Rac1 {[%emt 0:04:26]} Nb4 {[%emt 0:06:37]} 15. Bf4 {[%emt 0:01:58]} N6d5 {[%emt 0:01:39]} 16. Bg3 {[%emt 0:00:32]} Bd7 {[%emt 0:04:06]} 17. Nc4 {[%emt 0:02:40]} Bb5 {[%emt 0:03:26]} 18. a3 {[%emt 0:01:05]} Nc6 {[%emt 0:00:01]} 19. Rfd1 {[%emt 0:01:13]} Bxc4 {[%emt 0:00:21]} 20. Bxc4 {[%emt 0:00:21]} Rc8 {[%emt 0:00:04]} 21. Ba2 {[%emt 0:03:14]} Bf6 {[%emt 0:03:19]} 22. b4 {[%emt 0:04:58]} Nce7 {[%emt 0:00:47]} 23. h3 {[%emt 0:01:05]} h6 {[%emt 0:05:23]} 24. Qd3 {[%emt 0:00:38]} Rxc1 {[%emt 0:02:40]} 25. Rxc1 {[%emt 0:00:05]} Qa8 {[%emt 0:00:13]} 26. Bb1 {[%emt 0:05:10]} g6 {[%emt 0:00:14]} 27. h4 {[%emt 0:01:12]} h5 {[%emt 0:01:29]} 28. Ng5 {[%emt 0:01:17]} Rc8 {[%emt 0:00:27]} 29. Rxc8+ {[%emt 0:02:05]} Qxc8 {[%emt 0:00:05]} 30. Ne4 {[%emt 0:00:09]} Qc1+ {[%emt 0:00:36]} 31. Kh2 {[%emt 0:00:12]} Nf5 {[%emt 0:00:21]} 32. Ba2 {[%emt 0:02:22]} Bxd4 {[%emt 0:01:03]} 33. Bxd5 {[%emt 0:01:03]} exd5 {[%emt 0:00:01]} 34. Nd6 {[%emt 0:00:42]} Nh6 {[%emt 0:01:28]} 35. Qf3 {[%emt 0:00:35]} Ng4+ {[%emt 0:04:37] Qd3 Nh6 f3 Qg1+} 36. Kh3 {[%emt 0:01:01]} Qh1+ 37. Bh2 Be5 0-1

[Event "Go-Makkah Chess Festival 2019"]
[Site "Sousse"]
[Date "2019.09.07"]
[Round "8.6"]
[White "Al Ghamdi, Ahmed M"]
[Black "Zrikem, Nassim"]
[Result "0-1"]
[ECO "C55"]
[WhiteElo "2113"]
[BlackElo "2090"]
[Annotator "ChessBase"]
[PlyCount "96"]
[EventDate "2019.09.02"]
[EventType "swiss"]
[EventCountry "TUN"]
[SourceTitle "playchess.com"]
[Source "ChessBase"]
[SourceQuality "1"]
[TimeControl "5400+30"]

1. e4 {[%emt 0:20:56]} e5 {[%emt 0:00:00]} 2. Nf3 {[%emt 0:00:12]} Nc6 {[%emt 0:00:00]} 3. Bc4 {[%emt 0:00:34]} Nf6 {[%emt 0:00:00]} 4. d3 {[%emt 0:00:05]} Be7 {[%emt 0:00:03]} 5. O-O {[%emt 0:00:05]} d6 {[%emt 0:00:14]} 6. a4 {[%emt 0:00:45]} O-O {[%emt 0:00:24]} 7. Re1 {[%emt 0:00:11]} Na5 {[%emt 0:00:58]} 8. Ba2 {[%emt 0:00:28]} c5 {[%emt 0:00:37]} 9. Nbd2 {[%emt 0:01:06]} Be6 {[%emt 0:00:53]} 10. Bxe6 {[%emt 0:01:36]} fxe6 {[%emt 0:00:03]} 11. Nf1 {[%emt 0:01:15]} Nc6 {[%emt 0:01:25]} 12. c3 {[%emt 0:00:23]} Qd7 {[%emt 0:13:05]} 13. Ng3 {[%emt 0:05:27]} Bd8 {[%emt 0:02:07]} 14. h3 {[%emt 0:02:01]} Bb6 {[%emt 0:06:04]} 15. Be3 {[%emt 0:00:16]} Rac8 {[%emt 0:10:58]} 16. Qe2 {[%emt 0:06:03]} Qc7 {[%emt 0:03:14]} 17. Ng5 {[%emt 0:01:33]} Rce8 {[%emt 0:00:35]} 18. Rec1 {[%emt 0:05:14]} d5 {[%emt 0:10:14]} 19. b4 {[%emt 0:08:24]} cxb4 {[%emt 0:03:51]} 20. cxb4 {[%emt 0:00:38]} Qd6 {[%emt 0:04:38]} 21. Rab1 {[%emt 0:07:19]} Nxb4 {[%emt 0:07:45]} 22. a5 {[%emt 0:00:48]} Bxe3 {[%emt 0:04:37]} 23. Qxe3 {[%emt 0:00:32]} b6 {[%emt 0:06:17]} 24. axb6 {[%emt 0:00:29]} d4 {[%emt 0:04:47]} 25. Qd2 {[%emt 0:00:02]} a5 {[%emt 0:00:05]} 26. Nf3 {[%emt 0:00:46]} Nd7 {[%emt 0:04:10]} 27. Rc7 {[%emt 0:07:52]} Nxb6 {[%emt 0:06:01]} 28. Rbc1 {[%emt 0:00:56]} Rc8 {[%emt 0:04:09]} 29. Rxc8 {[%emt 0:00:45]} Rxc8 {[%emt 0:00:19]} 30. Rxc8+ {[%emt 0:00:11]} Nxc8 {[%emt 0:00:03]} 31. Qc1 {[%emt 0:04:24]} Nb6 {[%emt 0:01:06]} 32. Nh5 {[%emt 0:00:46]} h6 {[%emt 0:01:11]} 33. Qa3 {[%emt 0:02:40]} Qc5 {[%emt 0:04:21]} 34. Nd2 {[%emt 0:00:01]} a4 {[%emt 0:00:58]} 35. Nc4 {[%emt 0:02:36]} Nxd3 {[%emt 0:00:47]} 36. Qxd3 {[%emt 0:00:22]} Qxc4 {[%emt 0:00:04]} 37. Qd1 {[%emt 0:02:21]} Qc7 {[%emt 0:01:02]} 38. Qb1 {[%emt 0:02:25]} a3 {[%emt 0:00:45]} 39. Qb3 {[%emt 0:00:38]} Nc4 {[%emt 0:00:58]} 40. Qa4 {[%emt 0:00:07]} d3 {[%emt 0:00:37]} 41. Qe8+ {[%emt 0:02:22]} Kh7 {[%emt 0:00:01]} 42. Qxe6 {[%emt 0:00:28]} a2 {[%emt 0:00:22]} 43. Qf5+ {[%emt 0:00:45]} Kh8 {[%emt 0:00:07]} 44. Qf8+ {[%emt 0:00:17]} Kh7 {[%emt 0:00:01]} 45. Qf5+ {[%emt 0:00:08]} Kg8 {[%emt 0:00:26]} 46. Qe6+ {[%emt 0:00:58]} Qf7 {[%emt 0:00:05]} 47. Qa6 {[%emt 0:01:08]} d2 {[%emt 0:00:15]} 48. Qa4 {[%emt 0:00:03]} Nb2 {[%emt 0:00:10]} 0-1

[Event "Go-Makkah Chess Festival 2019"]
[Site "Sousse"]
[Date "2019.09.07"]
[Round "8.7"]
[White "Rian, Saad"]
[Black "Alkrnaf, Mohamed Othman"]
[Result "1-0"]
[ECO "D37"]
[WhiteElo "2100"]
[BlackElo "1915"]
[Annotator "ChessBase"]
[PlyCount "89"]
[EventDate "2019.09.02"]
[EventType "swiss"]
[EventCountry "TUN"]
[SourceTitle "playchess.com"]
[Source "ChessBase"]
[SourceQuality "1"]
[TimeControl "5400+30"]

1. d4 {[%emt 0:00:00]} d5 {[%emt 0:00:11]} 2. Nf3 {[%emt 0:00:00]} Nf6 {[%emt 0:00:09]} 3. c4 {[%emt 0:00:03]} e6 {[%emt 0:00:32]} 4. Nc3 {[%emt 0:00:24]} Be7 {[%emt 0:00:27]} 5. Bf4 {[%emt 0:00:38]} c6 {[%emt 0:01:55]} 6. c5 {[%emt 0:00:16]} a5 {[%emt 1:29:46]} 7. a3 {[%emt 0:02:27]} b5 {[%emt 0:00:00]} 8. h3 {[%emt 0:00:52]} Bb7 {[%emt 0:00:00]} 9. e3 {[%emt 0:00:20]} Na6 {[%emt 0:00:00]} 10. Bd3 {[%emt 0:00:55]} Nd7 {[%emt 0:00:00]} 11. O-O {[%emt 0:02:56]} f6 {[%emt 0:00:00]} 12. Qc2 {[%emt 0:02:25]} g6 {[%emt 0:00:00]} 13. Bxg6+ {[%emt 0:09:42]} hxg6 {[%emt 0:00:00]} 14. Qxg6+ {[%emt 0:00:09]} Kf8 {[%emt 0:00:00]} 15. Bh6+ {[%emt 0:03:49]} Rxh6 {[%emt 0:00:00]} 16. Qxh6+ {[%emt 0:00:06]} Kf7 {[%emt 0:00:00]} 17. Qh7+ {[%emt 0:00:40]} Ke8 {[%emt 0:00:00]} 18. Qg6+ {[%emt 0:00:24]} Kf8 {[%emt 0:00:00]} 19. e4 {[%emt 0:03:24]} Qe8 {[%emt 0:00:00]} 20. Qh6+ {[%emt 0:00:35]} Kg8 {[%emt 0:00:00]} 21. exd5 {[%emt 0:01:11]} exd5 {[%emt 0:00:00]} 22. Rfe1 {[%emt 0:00:54]} Qf7 {[%emt 0:00:00]} 23. Nh4 {[%emt 0:01:30]} Bf8 {[%emt 0:00:00]} 24. Qf4 {[%emt 0:00:36]} Re8 {[%emt 0:00:00]} 25. Nf5 {[%emt 0:04:21]} Bc8 {[%emt 0:00:00]} 26. Re3 {[%emt 0:03:53]} Rxe3 {[%emt 0:00:00]} 27. fxe3 {[%emt 0:00:49]} Bg7 {[%emt 0:00:00]} 28. Rf1 {[%emt 0:03:03]} Nf8 {[%emt 0:00:00]} 29. Nd6 {[%emt 0:02:42]} Qe6 {[%emt 0:00:00]} 30. e4 {[%emt 0:02:44]} Nc7 {[%emt 0:02:20]} 31. Nf5 {[%emt 0:01:19]} Ne8 {[%emt 0:03:47]} 32. exd5 {[%emt 0:00:47]} cxd5 {[%emt 0:00:47]} 33. Nxg7 {[%emt 0:07:10]} Kxg7 {[%emt 0:02:11]} 34. Nxb5 {[%emt 0:01:08]} Ba6 {[%emt 0:01:08]} 35. a4 {[%emt 0:00:26]} Ng6 {[%emt 0:01:45]} 36. Qg3 {[%emt 0:00:08]} f5 {[%emt 0:01:30]} 37. Re1 {[%emt 0:00:18]} Qd7 {[%emt 0:00:19]} 38. Qb8 {[%emt 0:01:50]} Nf6 {[%emt 0:00:26]} 39. Qb6 {[%emt 0:00:55]} Bxb5 {[%emt 0:00:51]} 40. axb5 {[%emt 0:00:59]} f4 {[%emt 0:00:16]} 41. Re6 {[%emt 0:11:52]} Qf7 {[%emt 0:01:08]} 42. h4 {[%emt 0:02:23]} Nxh4 {[%emt 0:00:34]} 43. Rxf6 {[%emt 0:00:18]} Qxf6 {[%emt 0:00:04]} 44. Qxf6+ {[%emt 0:00:11]} Kxf6 {[%emt 0:00:01]} 45. b6 {[%emt 0:00:13]} 1-0

[Event "Go-Makkah Chess Festival 2019"]
[Site "Sousse"]
[Date "2019.09.07"]
[Round "8.8"]
[White "Rian, Moubarak"]
[Black "Ahmed AlRehily"]
[Result "1-0"]
[ECO "D58"]
[WhiteElo "2048"]
[BlackElo "1827"]
[Annotator "NA"]
[PlyCount "81"]
[EventDate "2019.09.02"]
[EventType "swiss"]
[EventCountry "TUN"]
[SourceTitle "playchess.com"]
[Source "ChessBase"]
[SourceQuality "1"]
[TimeControl "5400+30"]

1. Nf3 {[%emt 0:00:00]} Nf6 {[%emt 0:00:02]} 2. c4 {[%emt 0:00:00]} e6 {[%emt 0:00:16]} 3. Nc3 {[%emt 0:00:15]} d5 {[%emt 0:00:30]} 4. d4 {[%emt 0:00:10]} Be7 {[%emt 0:00:25]} 5. Bg5 {[%emt 0:00:54]} Nbd7 {[%emt 0:00:22]} 6. e3 {[%emt 0:00:24]} h6 {[%emt 0:00:20]} 7. Bh4 {[%emt 0:00:11]} O-O {[%emt 0:00:33]} 8. Rc1 {[%emt 0:03:07]} b6 {[%emt 0:01:56]} 9. cxd5 {[%emt 0:00:26]} exd5 {[%emt 0:00:37]} 10. Bd3 {[%emt 0:00:17]} Bb7 {[%emt 0:00:47]} 11. Bg3 {[%emt 0:01:46]} Ne4 {[%emt 0:04:05]} 12. Bxc7 {[%emt 0:00:48]} Qxc7 {[%emt 0:02:27]} 13. Nxe4 {[%emt 0:00:12]} Qxc1 {[%emt 0:05:32]} 14. Nf6+ {[%emt 0:00:23]} Nxf6 {[%emt 0:00:19]} 15. Qxc1 {[%emt 0:00:05]} Rac8 {[%emt 0:00:41]} 16. Qb1 {[%emt 0:00:43]} Rc7 {[%emt 0:01:36]} 17. O-O {[%emt 0:00:19]} Ne4 {[%emt 0:00:36]} 18. Rd1 {[%emt 0:01:07]} Rfc8 {[%emt 0:00:54]} 19. a3 {[%emt 0:01:22]} Bxa3 {[%emt 0:00:51]} 20. Bxe4 {[%emt 0:01:35]} dxe4 {[%emt 0:00:34]} 21. Ne5 {[%emt 0:02:39]} Bb4 {[%emt 0:00:58]} 22. h4 {[%emt 0:00:44]} Bd5 {[%emt 0:00:29]} 23. f3 {[%emt 0:08:48]} Rc2 {[%emt 0:19:14]} 24. b3 {[%emt 0:01:51]} R8c3 {[%emt 0:18:58]} 25. Rf1 {[%emt 0:06:49]} a5 {[%emt 0:04:23]} 26. Kh2 {[%emt 0:06:49]} f6 {[%emt 0:03:01]} 27. f4 {[%emt 0:06:41]} fxe5 {[%emt 0:03:08]} 28. fxe5 {[%emt 0:00:20]} Re2 {[%emt 0:02:11]} 29. Rc1 {[%emt 0:03:28]} Rexe3 {[%emt 0:02:16]} 30. Rxc3 {[%emt 0:00:11]} Rxc3 {[%emt 0:01:25]} 31. Qf1 {[%emt 0:00:33]} e3 {[%emt 0:01:01]} 32. Qb5 {[%emt 0:00:20]} Bc6 {[%emt 0:00:21]} 33. Qe2 {[%emt 0:53:13]} b5 {[%emt 0:03:04]} 34. Qg4 {[%emt 0:00:00]} Bd5 {[%emt 0:12:14]} 35. Qd7 {[%emt 0:00:00]} e2 {[%emt 0:01:22]} 36. Qxd5+ {[%emt 0:00:00]} Kh8 {[%emt 0:00:10]} 37. Qa8+ {[%emt 0:00:00]} Kh7 {[%emt 0:03:35]} 38. Qe4+ {[%emt 0:00:00]} Kh8 {[%emt 0:01:04]} 39. Qxe2 {[%emt 0:00:00]} Rxb3 {[%emt 0:01:48]} 40. Qxb5 {[%emt 0:00:00]} Rb1 {[%emt 0:00:56]} 41. d5 {[%emt 0:00:00]} 1-0

[Event "Go-Makkah Chess Festival 2019"]
[Site "Sousse"]
[Date "2019.09.07"]
[Round "8.9"]
[White "Ben Ghanem, Hamed"]
[Black "Mohamed, Nouali"]
[Result "1-0"]
[ECO "D00"]
[WhiteElo "2064"]
[BlackElo "2061"]
[Annotator "NA"]
[PlyCount "77"]
[EventDate "2019.09.02"]
[EventType "swiss"]
[EventCountry "TUN"]
[SourceTitle "playchess.com"]
[Source "ChessBase"]
[SourceQuality "1"]
[TimeControl "5400+30"]

1. d4 {[%emt 0:00:00]} d5 {[%emt 0:05:45]} 2. Bf4 {[%emt 0:00:00]} Nf6 {[%emt 0:01:19]} 3. e3 {[%emt 0:00:00]} g6 {[%emt 0:01:07]} 4. Nd2 {[%emt 0:06:21]} Bg7 {[%emt 0:02:25]} 5. h4 {[%emt 0:00:58]} (5. h3 O-O 6. Ngf3 c5 7. c3 b6 8. a4 Nc6 9. Bd3 Nd7 10. Bh2 Bb7 11. O-O e5 12. e4 exd4 13. exd5 Nce5 14. Nxe5 Nxe5 15. Bxe5 Bxe5 {½-½ (41) Nakamura,H (2779)-Yu,Y (2729) Doha 2016}) 5... c5 {[%emt 0:06:57]} 6. c3 {[%emt 0:00:15] D00: 1 d4 d5: Unusual lines} Nc6 {[%emt 0:03:10]} 7. Be2 $146 {[%emt 0:01:08]} ({Predecessor:} 7. Ngf3 Qb6 8. Qb3 c4 9. Qxb6 axb6 10. a3 Bf5 11. Be2 {1-0 (41) Cernousek,L (2183)-Jirka,J (2173) Svetla nad Sazavou 1999}) 7... h6 {[%emt 0:10:17]} 8. Ngf3 {[%emt 0:04:25]} Nd7 {[%emt 0:08:07]} 9. Qb3 {[%emt 0:17:24]} cxd4 {[%emt 0:18:15]} 10. exd4 {[%emt 0:01:12]} Nb6 {[%emt 0:00:45]} 11. O-O {[%emt 0:03:13]} O-O {[%emt 0:00:53]} 12. Rfe1 {[%emt 0:00:31]} Bf5 {[%emt 0:02:30]} 13. Bf1 {[%emt 0:05:57]} e6 {[%emt 0:06:39]} 14. a4 {[%emt 0:02:29]} Qd7 {[%emt 0:06:22]} 15. a5 {[%emt 0:05:22]} Nc8 {[%emt 0:00:07]} 16. a6 {[%emt 0:03:30]} b6 {[%emt 0:00:27]} 17. Bb5 {[%emt 0:04:10]} Nd6 {[%emt 0:06:00]} 18. Ba4 {[%emt 0:06:58]} h5 {[%emt 0:10:35]} 19. Ne5 {[%emt 0:05:20]} Bxe5 {[%emt 0:00:10]} 20. dxe5 {[%emt 0:04:45]} Ne4 {[%emt 0:01:06]} 21. Nxe4 {[%emt 0:02:48]} Bxe4 {[%emt 0:00:02]} 22. Qd1 {[%emt 0:00:58]} Qc7 {[%emt 0:01:17]} 23. Bxc6 {[%emt 0:01:41]} Qxc6 {[%emt 0:00:01]} 24. Bg5 {[%emt 0:00:19]} Qb5 {[%emt 0:01:26]} 25. Bf6 {[%emt 0:06:18]} (25. f3 $14 Bf5 26. Qd2) 25... Qxb2 {[%emt 0:01:28]} 26. Qd4 {[%emt 0:00:21]} (26. c4 $15) 26... Rac8 {[%emt 0:01:04]} 27. Qe3 {[%emt 0:00:14]} Kh7 {[%emt 0:00:09]} 28. Rac1 {[%emt 0:02:13]} Rc4 {[%emt 0:00:50]} 29. Be7 {[%emt 0:04:22]} Re8 {[%emt 0:01:06]} 30. Bb4 $19 {[%emt 0:03:19]} Bf5 {[%emt 0:01:12]} 31. f3 {[%emt 0:00:17]} Rxh4 {[%emt 0:01:23]} 32. Re2 {[%emt 0:01:59]} Qb3 {[%emt 0:02:10]} 33. g4 {[%emt 0:02:31]} hxg4 {[%emt 0:00:27]} 34. Qg5 {[%emt 0:00:23]} Rh5 {[%emt 0:00:45]} 35. Rh2 {[%emt 0:00:13]} Rxh2 {[%emt 0:00:39]} 36. Kxh2 {[%emt 0:00:02]} Rh8 {[%emt 0:00:28]} 37. Kg3 {[%emt 0:00:18]} Kg8 {[%emt 0:00:35]} 38. Qd8+ {[%emt 0:00:13]} Kg7 {[%emt 0:00:01]} 39. Bf8+ {[%emt 0:01:35]} 1-0